[Event "51st La Roda Open 2025"]
[Site "La Roda"]
[Date "2025.04.18"]
[Round "6.3"]
[White "Gumularz, Szymon"]
[Black "Suleymenov, Alisher"]
[Result "1-0"]
[Annotator "TA"]
[ECO "C43"]
[WhiteElo "2604"]
[BlackElo "2478"]
[PlyCount "59"]
[EventDate "2025.04.15"]
[EventType "swiss"]
[EventCountry "ESP"]
[SourceTitle "playchess.com"]
[Source "ChessBase"]
[SourceQuality "1"]
[TimeControl "5400+30"]

{[%evp 9,59,12,10,0,6,9,14,17,8,-7,39,33,24,19,43,11,6,0,21,13,50,54,53,53,51,46,60,6,13,0,0,-44,-38,-48,-42,-160,-31,-22,10,10,10,0,6,3,925,910,965,965,1010,1006,856,823]} 1. e4 {[%emt 0:00:04]} e5 {[%emt 0:00:07]} 2. Nf3 {[%emt 0:00:05]} Nf6 {[%emt 0:00:06]} 3. d4 {[%emt 0:00:06]} Nxe4 {[%emt 0:00:28]} 4. dxe5 {[%emt 0:00:06]} d5 {[%emt 0:00:05]} 5. Nbd2 {[%emt 0:00:07]} Nxd2 {[%emt 0:00:07]} 6. Bxd2 {[%emt 0:00:05] C43: Petroff Defence: 3 d4.} Be7 {[%emt 0:00:07]} 7. Bd3 {[%emt 0:00:16]} c5 {[%emt 0:00:07]} 8. c3 {[%emt 0:00:15] The position is equal.} Nc6 {[%emt 0:00:07]} 9. O-O {[%emt 0:00:12]} Bg4 {[%emt 0:00:37]} (9... g5 $11) 10. Re1 $14 Qd7 {[%emt 0:00:57]} 11. h3 {[%emt 0:00:16]} Bh5 {[%emt 0:00:08][%cal Bg4h5,Bh5g6,Bg6e4][%mdl 32]} 12. Bf4 {[%emt 0:00:21]} Qe6 {[%emt 0:03:37]} 13. Be2 {[%emt 0:01:28][%cal Of3d4]} O-O {[%emt 0:01:00]} 14. Qd2 {[%emt 0:10:31]} Bg6 {[%emt 0:20:33]} (14... Rfe8 $5) 15. Rad1 {[%emt 0:03:59]} Be4 {[%emt 0:01:01]} 16. Ng5 $1 {[%emt 0:03:07]} Bxg5 {[%emt 0:01:16]} 17. Bxg5 {[%emt 0:00:05]} d4 {[%emt 0:14:21]} 18. Qf4 $146 {[%emt 0:04:29]} (18. f4 $14) (18. Bf1 Qg6 19. Qf4 Bc2 20. Rd2 Rae8 21. Bh4 Kh8 22. f3 a6 23. Bf2 Rd8 24. Rc1 {1-0 Firouzja,A (2770)-Najer,E (2654) FIDE Grand Swiss 2021 (7)}) 18... Bg6 {[%emt 0:07:06]} (18... Bf5 19. Bg4 Bxg4 20. Qxg4 Qxg4 21. hxg4 dxc3 22. bxc3 Rfe8) 19. Bg4 {[%emt 0:29:03] A strong pair of Bishops.} (19. cxd4 {simplifies} Nxd4 20. Bg4 Qc6 21. Rxd4 cxd4 22. Qxd4 Qb6 23. Qxb6 axb6 24. a3) 19... Qxa2 {[%emt 0:00:42]} 20. e6 {[%emt 0:00:53][%cal Rc3d4]} Qxb2 {[%emt 0:14:11]} 21. e7 {[%emt 0:00:49]} Rfe8 {[%emt 0:00:16]} 22. Bd7 {[%emt 0:00:44] [#]} (22. cxd4 $15 cxd4 (22... h6 23. d5 $16) 23. Bd7) 22... Qxc3 {[%emt 0:01:31]} (22... h6 $1 $17 {[%cal Rh6g5]} 23. Bh4 (23. Bxe8 hxg5 24. Bxf7+ Bxf7 $17) 23... d3) 23. Qc7 $15 {[%emt 0:01:42][%cal Oc7b7] [#]} f6 $1 {[%emt 0:13:51]} 24. Qxb7 {[%emt 0:09:51]} Ne5 $1 {[%emt 0:01:47] Strongly threatening ...Nxd7.} (24... Nxe7 $2 {is the wrong capture.} 25. Bxe8 (25. Rxe7 fxg5 26. Rxe8+ Rxe8 $18) 25... Rxe8 26. Bf4 $18 (26. Rxe7 fxg5 27. Rxe8+ Bxe8 $18) (26. Bxf6 gxf6 27. Rxe7 Rxe7 $16)) 25. Qd5+ {[%emt 0:08:49]} Bf7 {[%emt 0:06:48]} 26. Be6 $36 {[%emt 0:00:09][%mdl 2048] White is more active. Some like it hot} Qc2 $2 {[%emt 0:00:02][%mdl 8192] Loses the game.} (26... Bxe6 $11 27. Qxe6+ Nf7) 27. Bxf7+ $18 {[%emt 0:00:40] White is clearly winning.} Nxf7 {[%emt 0:02:44] [#]} 28. Qxa8 $1 {[%emt 0:00:04][%cal Ra8e8]} Qa4 {[%emt 0:00:50]} 29. Qd5 {[%emt 0:00:36]} fxg5 {[%emt 0:00:19]} 30. Qxc5 {[%emt 0:00:14] Weighted Error Value: White=0.12 (very precise) /Black=0.31  Loses game:     	---       	Black=1      Mistake:       	White=2     	Black=2      Inaccurate:     	White=2     	Black=2      OK:         	White=12    	Black=10     Best:        	White=2     	Black=2      Strong:       	White=1     	Black=1} 1-0

[Event "51st La Roda Open 2025"]
[Site "La Roda"]
[Date "2025.04.18"]
[Round "6.4"]
[White "Goncalves, Samuel Jesus P"]
[Black "Kanov, Nikola"]
[Result "1/2-1/2"]
[Annotator "RC"]
[ECO "A04"]
[WhiteElo "2248"]
[BlackElo "2413"]
[PlyCount "51"]
[EventDate "2025.04.15"]
[EventType "swiss"]
[EventCountry "ESP"]
[SourceTitle "playchess.com"]
[Source "ChessBase"]
[SourceQuality "1"]
[TimeControl "5400+30"]

1. c4 {[%emt 0:00:03]} e5 {[%emt 0:00:47]} 2. g3 {[%emt 0:00:09]} c5 {[%emt 0:00:32]} 3. Bg2 {[%emt 0:00:24]} Nc6 {[%emt 0:00:20]} 4. Nc3 {[%emt 0:00:16]} d6 {[%emt 0:00:48]} 5. Nf3 {[%emt 0:08:04]} f5 {[%emt 0:00:32]} 6. d3 {[%emt 0:00:37]} Nf6 {[%emt 0:00:47]} 7. O-O {[%emt 0:05:00]} Be7 {[%emt 0:00:27]} 8. Ne1 {[%emt 0:03:08]} O-O {[%emt 0:09:44]} 9. Nc2 {[%emt 0:01:31]} Be6 {[%emt 0:07:48]} 10. Ne3 {[%emt 0:03:58]} f4 {[%emt 0:15:41]} 11. Ned5 {[%emt 0:02:30]} fxg3 {[%emt 0:05:29]} 12. fxg3 {[%emt 0:03:22]} Qd7 {[%emt 0:01:40]} 13. Nxe7+ {[%emt 0:37:00]} Nxe7 {[%emt 0:02:48]} 14. Bg5 {[%emt 0:00:43]} Bh3 {[%emt 0:08:11]} 15. Bxf6 {[%emt 0:03:13]} gxf6 {[%emt 0:02:16]} 16. Ne4 {[%emt 0:02:37]} Bxg2 {[%emt 0:01:56]} 17. Kxg2 {[%emt 0:00:29]} f5 {[%emt 0:00:46]} 18. Nc3 {[%emt 0:00:35]} f4 {[%emt 0:03:01]} 19. e4 {[%emt 0:06:26]} Ng6 {[%emt 0:07:57]} 20. Nd5 {[%emt 0:04:41]} Rf7 {[%emt 0:02:34]} 21. Qh5 {[%emt 0:04:24]} Raf8 {[%emt 0:02:04]} 22. b3 {[%emt 0:01:48]} Kh8 {[%emt 0:01:18]} 23. Rad1 {[%emt 0:01:35]} b5 {[%emt 0:03:25]} 24. Kg1 {[%emt 0:03:14]} Qc6 {[%emt 0:06:50]} 25. Rd2 {[%emt 0:00:55]} Qb7 {[%emt 0:07:43]} 26. Rdf2 {[%emt 0:00:22]} 1/2-1/2

[Event "51st La Roda Open 2025"]
[Site "La Roda"]
[Date "2025.04.18"]
[Round "6.5"]
[White "Gomez Falagan, Daniel"]
[Black "Valmana Canto, Jaime"]
[Result "1/2-1/2"]
[Annotator "RC"]
[ECO "E94"]
[WhiteElo "2254"]
[BlackElo "2385"]
[PlyCount "84"]
[EventDate "2025.04.15"]
[EventType "swiss"]
[EventCountry "ESP"]
[SourceTitle "playchess.com"]
[Source "ChessBase"]
[SourceQuality "1"]
[TimeControl "5400+30"]

1. d4 {[%emt 0:00:02]} Nf6 {[%emt 0:03:33]} 2. c4 {[%emt 0:00:03]} g6 {[%emt 0:01:03]} 3. Nc3 {[%emt 0:00:07]} Bg7 {[%emt 0:00:06]} 4. e4 {[%emt 0:00:11]} d6 {[%emt 0:00:07]} 5. Nf3 {[%emt 0:00:07]} O-O {[%emt 0:00:19]} 6. Be2 {[%emt 0:00:07]} e5 {[%emt 0:00:08]} 7. Be3 {[%emt 0:00:07]} Nbd7 {[%emt 0:11:05]} 8. O-O {[%emt 0:00:27]} Re8 {[%emt 0:00:05]} 9. Qc2 {[%emt 0:00:31]} exd4 {[%emt 0:01:22]} 10. Nxd4 {[%emt 0:00:43]} c6 {[%emt 0:00:18]} 11. Rad1 {[%emt 0:05:04]} Nc5 {[%emt 0:07:13]} 12. Nxc6 {[%emt 0:02:14]} Qc7 {[%emt 0:16:24]} 13. Nxa7 {[%emt 0:07:47]} Rxa7 {[%emt 0:01:29]} 14. Nb5 {[%emt 0:00:07]} Qa5 {[%emt 0:00:13]} 15. Nxa7 {[%emt 0:00:05]} Qxa7 {[%emt 0:00:01]} 16. b4 {[%emt 0:00:08]} Qa4 {[%emt 0:00:05]} 17. Qxa4 {[%emt 0:18:29]} Nxa4 {[%emt 0:00:01]} 18. f3 {[%emt 0:00:09]} Nc3 {[%emt 0:30:38]} 19. Rd2 {[%emt 0:01:41]} Be6 {[%emt 0:25:50]} 20. Rc1 {[%emt 0:09:40]} Nxe2+ {[%emt 0:00:00]} 21. Rxe2 {[%emt 0:00:07]} Nd7 {[%emt 0:00:00]} 22. Rd2 {[%emt 0:19:14]} Ne5 {[%emt 0:00:00]} 23. Rxd6 {[%emt 0:34:50]} Bf8 24. Rb6 {[%emt 0:00:00]} Nd3 {[%emt 0:00:00]} 25. Rb1 {[%emt 0:00:00]} Bxc4 {[%emt 0:00:00]} 26. Rxb7 {[%emt 0:00:00]} Bxa2 {[%emt 0:00:00]} 27. Ra1 {[%emt 0:00:00]} Be6 {[%emt 0:00:00]} 28. b5 {[%emt 0:00:00]} f5 {[%emt 0:00:00]} 29. b6 {[%emt 0:00:00]} f4 {[%emt 0:00:00]} 30. Bf2 {[%emt 0:00:00]} Nxf2 {[%emt 0:00:00]} 31. Kxf2 {[%emt 0:00:00]} Bc5+ {[%emt 0:00:00]} 32. Ke2 {[%emt 0:00:00]} Bd5 {[%emt 0:00:00]} 33. Rd7 {[%emt 0:00:00]} Bc4+ {[%emt 0:00:00]} 34. Ke1 {[%emt 0:00:00]} Bxb6 {[%emt 0:00:00]} 35. Rb1 {[%emt 0:00:00]} Ba5+ {[%emt 0:02:55]} 36. Kf2 {[%emt 0:00:00]} Bc3 {[%emt 0:00:31]} 37. Rbb7 {[%emt 0:00:00]} Ra8 {[%emt 0:03:21]} 38. g3 {[%emt 0:01:46]} Ra2+ {[%emt 0:02:02]} 39. Kg1 {[%emt 0:00:13]} Ra1+ {[%emt 0:00:02]} 40. Kg2 {[%emt 0:01:05]} Ra2+ {[%emt 0:00:03]} 41. Kg1 {[%emt 0:00:03]} Ra1+ {[%emt 0:00:17]} 42. Kg2 {[%emt 0:00:05]} Ra2+ {[%emt 0:00:04]} 1/2-1/2

[Event "51st La Roda Open 2025"]
[Site "La Roda"]
[Date "2025.04.18"]
[Round "6.6"]
[White "Yordanov, Lachezar"]
[Black "Aishwin Daniel"]
[Result "1/2-1/2"]
[Annotator "ChessBase"]
[ECO "A84"]
[WhiteElo "2364"]
[BlackElo "2236"]
[PlyCount "43"]
[EventDate "2025.04.15"]
[EventType "swiss"]
[EventCountry "ESP"]
[SourceTitle "playchess.com"]
[Source "ChessBase"]
[SourceQuality "1"]
[TimeControl "5400+30"]

1. d4 {[%emt 0:00:02]} e6 {[%emt 0:03:05]} 2. c4 {[%emt 0:00:16]} f5 {[%emt 0:00:21]} 3. e3 {[%emt 0:00:14]} Bb4+ {[%emt 0:00:51]} 4. Bd2 {[%emt 0:00:23]} Bxd2+ {[%emt 0:00:07]} 5. Qxd2 {[%emt 0:00:06]} Nf6 {[%emt 0:00:10]} 6. Bd3 {[%emt 0:00:08]} b6 {[%emt 0:00:27]} 7. Nc3 {[%emt 0:00:36]} Bb7 {[%emt 0:01:27]} 8. f3 {[%emt 0:00:12]} Nc6 {[%emt 0:16:37]} 9. Nge2 {[%emt 0:02:25]} O-O {[%emt 0:04:05]} 10. O-O {[%emt 0:02:34]} d5 {[%emt 0:05:07]} 11. Nf4 {[%emt 0:32:27]} Qd7 {[%emt 0:07:51]} 12. cxd5 {[%emt 0:00:40]} Nxd5 {[%emt 0:00:45]} 13. Ncxd5 {[%emt 0:00:15]} exd5 {[%emt 0:00:29]} 14. Bb5 {[%emt 0:00:06]} Qd6 {[%emt 0:07:00]} 15. Bxc6 {[%emt 0:00:07]} Bxc6 {[%emt 0:00:49]} 16. a4 {[%emt 0:00:05]} Bb7 {[%emt 0:04:39]} 17. Rfc1 {[%emt 0:02:26]} c5 {[%emt 0:12:20]} 18. Nd3 {[%emt 0:03:33]} c4 {[%emt 0:04:10]} 19. Ne5 {[%emt 0:00:01]} a6 {[%emt 0:00:46]} 20. b4 {[%emt 0:00:15]} Rac8 {[%emt 0:04:17]} 21. f4 {[%emt 0:01:35]} Rc7 {[%emt 0:02:16]} 22. Ra2 {[%emt 0:00:45]} 1/2-1/2

[Event "51st La Roda Open 2025"]
[Site "La Roda"]
[Date "2025.04.18"]
[Round "6.7"]
[White "Sierra Vallina, Lionel"]
[Black "Abdsattar, Alisher"]
[Result "1-0"]
[Annotator "ChessBase"]
[ECO "C70"]
[WhiteElo "2342"]
[BlackElo "2126"]
[PlyCount "83"]
[EventDate "2025.04.15"]
[EventType "swiss"]
[EventCountry "ESP"]
[SourceTitle "playchess.com"]
[Source "ChessBase"]
[SourceQuality "1"]
[TimeControl "5400+30"]

1. e4 {[%emt 0:00:02]} e5 {[%emt 0:00:12]} 2. Nf3 {[%emt 0:00:19]} Nc6 {[%emt 0:00:03]} 3. Bb5 {[%emt 0:00:13]} a6 {[%emt 0:00:03]} 4. Ba4 {[%emt 0:00:07]} Bc5 {[%emt 0:00:04]} 5. c3 {[%emt 0:00:17]} Nge7 {[%emt 0:00:03]} 6. d4 {[%emt 0:00:34]} exd4 {[%emt 0:00:04]} 7. cxd4 {[%emt 0:00:06]} Bb4+ {[%emt 0:00:03]} 8. Bd2 {[%emt 0:00:24]} Bxd2+ {[%emt 0:00:05]} 9. Qxd2 {[%emt 0:00:07]} d5 {[%emt 0:00:18]} 10. exd5 {[%emt 0:00:05]} Nxd5 {[%emt 0:00:54]} 11. Bxc6+ {[%emt 0:00:23]} bxc6 12. O-O {[%emt 0:00:08]} O-O {[%emt 0:01:17]} 13. Ne5 {[%emt 0:00:09]} Qd6 {[%emt 0:14:39]} 14. Nc3 {[%emt 0:02:03]} Ne7 {[%emt 0:06:14]} 15. Ne4 {[%emt 0:15:47]} Qd5 {[%emt 0:06:49]} 16. Nc3 {[%emt 0:12:46]} Qd6 {[%emt 0:00:18]} 17. Rfe1 {[%emt 0:00:05]} Bf5 {[%emt 0:10:05]} 18. Nc4 {[%emt 0:07:00]} Qd7 {[%emt 0:00:36]} 19. Na4 {[%emt 0:00:19]} Rfe8 {[%emt 0:10:34]} 20. Nc5 {[%emt 0:03:16]} Qd8 {[%emt 0:02:36]} 21. Re3 {[%emt 0:15:28]} Nd5 {[%emt 0:15:17]} 22. Rxe8+ {[%emt 0:04:52]} Qxe8 {[%emt 0:00:06]} 23. Re1 {[%emt 0:00:06]} Qd8 {[%emt 0:03:22]} 24. Na5 {[%emt 0:03:07]} Qf6 {[%emt 0:01:34]} 25. Qe2 {[%emt 0:02:50]} g6 {[%emt 0:06:16]} 26. Qe5 {[%emt 0:01:11]} Qd6 {[%emt 0:00:11]} 27. a3 {[%emt 0:04:56]} Nf4 {[%emt 0:05:22]} 28. b4 {[%emt 0:02:35]} f6 {[%emt 0:05:50]} 29. Qxd6 {[%emt 0:00:31]} cxd6 {[%emt 0:00:04]} 30. Ncb7 {[%emt 0:00:22]} Nd3 {[%emt 0:00:09]} 31. Re3 {[%emt 0:00:48]} g5 {[%emt 0:04:07]} 32. Nxd6 {[%emt 0:01:05]} Bg6 {[%emt 0:00:05]} 33. Nxc6 {[%emt 0:00:48]} Nf4 {[%emt 0:00:02]} 34. Ne7+ {[%emt 0:01:02]} Kf8 {[%emt 0:00:06]} 35. g3 {[%emt 0:01:11]} Nh5 {[%emt 0:00:38]} 36. Nxg6+ {[%emt 0:00:35]} hxg6 {[%emt 0:00:05]} 37. Nb7 {[%emt 0:00:21]} Ng7 {[%emt 0:00:07]} 38. Nc5 {[%emt 0:01:56]} Kf7 {[%emt 0:00:08]} 39. g4 {[%emt 0:01:06]} f5 {[%emt 0:00:36]} 40. f3 {[%emt 0:00:35]} Ne8 {[%emt 0:00:22]} 41. Re6 {[%emt 0:01:55]} Nf6 {[%emt 0:00:09]} 42. Rxa6 {[%emt 0:00:39]} 1-0

[Event "51st La Roda Open 2025"]
[Site "La Roda"]
[Date "2025.04.18"]
[Round "6.8"]
[White "Santos, Antonio P"]
[Black "Centron Antuna, Daniel"]
[Result "0-1"]
[Annotator "ChessBase"]
[ECO "E16"]
[WhiteElo "2152"]
[BlackElo "2299"]
[PlyCount "76"]
[EventDate "2025.04.15"]
[EventType "swiss"]
[EventCountry "ESP"]
[SourceTitle "playchess.com"]
[Source "ChessBase"]
[SourceQuality "1"]
[TimeControl "5400+30"]

1. d4 {[%emt 0:01:07]} Nf6 {[%emt 0:00:05]} 2. c4 {[%emt 0:00:10]} e6 {[%emt 0:00:07]} 3. Nf3 {[%emt 0:00:08]} b6 {[%emt 0:00:09]} 4. g3 {[%emt 0:00:35]} Bb4+ {[%emt 0:00:20]} 5. Bd2 {[%emt 0:00:28]} Bxd2+ {[%emt 0:00:15]} 6. Qxd2 {[%emt 0:00:11]} Bb7 {[%emt 0:00:12]} 7. Bg2 {[%emt 0:00:13]} O-O {[%emt 0:00:10]} 8. O-O {[%emt 0:00:11]} d6 {[%emt 0:00:08]} 9. Nc3 {[%emt 0:00:27]} Ne4 {[%emt 0:00:09]} 10. Qc2 {[%emt 0:00:51]} Nxc3 {[%emt 0:00:33]} 11. Qxc3 {[%emt 0:00:10]} a5 {[%emt 0:08:32]} 12. b3 {[%emt 0:00:33]} Nd7 {[%emt 0:01:19]} 13. Rfd1 {[%emt 0:02:57]} Qe7 {[%emt 0:01:09]} 14. Qc2 {[%emt 0:14:20]} f5 {[%emt 0:07:16]} 15. Rac1 {[%emt 0:00:30]} Be4 {[%emt 0:05:40]} 16. Qd2 {[%emt 0:16:47]} Rae8 {[%emt 0:12:12]} 17. a3 {[%emt 0:10:00]} Nf6 {[%emt 0:03:17]} 18. b4 {[%emt 0:00:37]} axb4 {[%emt 0:00:21]} 19. axb4 {[%emt 0:00:02]} b5 {[%emt 0:04:03]} 20. d5 {[%emt 0:12:52]} bxc4 {[%emt 0:05:08]} 21. dxe6 {[%emt 0:01:07]} Bd5 {[%emt 0:11:29]} 22. Nd4 {[%emt 0:00:38]} Bxe6 {[%emt 0:01:07]} 23. Bc6 {[%emt 0:00:52]} Ne4 {[%emt 0:04:15]} 24. Qe3 {[%emt 0:07:50]} Bd7 {[%emt 0:01:46]} 25. Rxc4 {[%emt 0:11:07]} Bxc6 {[%emt 0:01:42]} 26. Rxc6 {[%emt 0:01:53]} f4 {[%emt 0:01:51]} 27. gxf4 {[%emt 0:03:21]} Qh4 {[%emt 0:03:05]} 28. f5 {[%emt 0:02:10]} Rf6 {[%emt 0:06:18]} 29. h3 {[%emt 0:04:11]} Rh6 {[%emt 0:01:08]} 30. Rxc7 {[%emt 0:01:27]} Rh5 {[%emt 0:01:19]} 31. Ne6 {[%emt 0:02:49]} Rxf5 {[%emt 0:03:58]} 32. Rxg7+ {[%emt 0:01:59]} Kh8 {[%emt 0:00:02]} 33. Rg4 {[%emt 0:01:10]} Qxf2+ {[%emt 0:00:34]} 34. Qxf2 {[%emt 0:00:01]} Nxf2 {[%emt 0:00:07]} 35. Ng7 {[%emt 0:00:08]} Nxh3+ {[%emt 0:08:35]} 36. Kg2 {[%emt 0:00:03]} Rxe2+ {[%emt 0:01:21]} 37. Kxh3 {[%emt 0:00:05]} Rf3+ {[%emt 0:00:10]} 38. Rg3 {[%emt 0:00:24]} Rxg3+ {[%emt 0:03:03]} 0-1

[Event "51st La Roda Open 2025"]
[Site "La Roda"]
[Date "2025.04.18"]
[Round "6.9"]
[White "Gonzalez Castillo, Jose Javier"]
[Black "Hernandez Leon, Sergio"]
[Result "1-0"]
[Annotator "ChessBase"]
[ECO "B22"]
[WhiteElo "2297"]
[BlackElo "2123"]
[PlyCount "51"]
[EventDate "2025.04.15"]
[EventType "swiss"]
[EventCountry "ESP"]
[SourceTitle "playchess.com"]
[Source "ChessBase"]
[SourceQuality "1"]
[TimeControl "5400+30"]

1. e4 {[%emt 0:01:48]} c5 {[%emt 0:00:19]} 2. c3 {[%emt 0:00:07]} d5 {[%emt 0:00:21]} 3. exd5 {[%emt 0:00:07]} Qxd5 {[%emt 0:00:04]} 4. d4 {[%emt 0:00:06]} Nc6 {[%emt 0:03:15]} 5. Nf3 {[%emt 0:00:08]} Nf6 {[%emt 0:00:32]} 6. Be3 {[%emt 0:00:53]} cxd4 {[%emt 0:01:32]} 7. cxd4 {[%emt 0:00:14]} e6 {[%emt 0:02:22]} 8. Nc3 {[%emt 0:00:31]} Bb4 {[%emt 0:00:11]} 9. Bd3 {[%emt 0:00:08]} O-O {[%emt 0:02:24]} 10. O-O {[%emt 0:00:12]} Bxc3 {[%emt 0:01:51]} 11. bxc3 {[%emt 0:00:04]} b6 {[%emt 0:00:23]} 12. Re1 {[%emt 0:04:28]} Bb7 {[%emt 0:03:05]} 13. Qc2 {[%emt 0:09:08]} Rac8 {[%emt 0:05:39]} 14. Rab1 {[%emt 0:00:53]} Na5 {[%emt 0:05:04]} 15. Bg5 {[%emt 0:05:13]} Qc6 {[%emt 0:20:03]} 16. Rbc1 {[%emt 0:14:16]} h6 {[%emt 0:08:16]} 17. Bxf6 {[%emt 0:00:53]} gxf6 {[%emt 0:00:02]} 18. Qd2 {[%emt 0:00:31]} Kg7 {[%emt 0:00:30]} 19. Qf4 {[%emt 0:05:46]} Rh8 {[%emt 0:00:16]} 20. Re3 {[%emt 0:05:56]} Qc7 {[%emt 0:06:00]} 21. Qg4+ {[%emt 0:02:10]} Kf8 {[%emt 0:01:44]} 22. Nh4 {[%emt 0:01:45]} h5 {[%emt 0:01:33]} 23. Qh3 {[%emt 0:04:25]} Qf4 {[%emt 0:00:33]} 24. Qxe6 {[%emt 0:03:48]} Nc6 {[%emt 0:04:11]} 25. Bc4 {[%emt 0:04:31]} Rc7 {[%emt 0:02:42]} 26. Qxf7+ {[%emt 0:35:29]} 1-0

[Event "51st La Roda Open 2025"]
[Site "La Roda"]
[Date "2025.04.18"]
[Round "6.10"]
[White "Buendia Pinar, Alvaro"]
[Black "Del Rosario Silva, Dexnisi"]
[Result "1-0"]
[Annotator "ChessBase"]
[ECO "D66"]
[WhiteElo "2322"]
[BlackElo "2013"]
[PlyCount "83"]
[EventDate "2025.04.15"]
[EventType "swiss"]
[EventCountry "ESP"]
[SourceTitle "playchess.com"]
[Source "ChessBase"]
[SourceQuality "1"]
[TimeControl "5400+30"]

1. d4 {[%emt 0:00:35]} Nf6 {[%emt 0:00:07]} 2. c4 {[%emt 0:00:45]} e6 {[%emt 0:00:03]} 3. Nc3 {[%emt 0:00:46]} d5 {[%emt 0:00:07]} 4. Bg5 {[%emt 0:00:35]} c6 {[%emt 0:00:51]} 5. e3 {[%emt 0:01:07]} Nbd7 {[%emt 0:02:34]} 6. Nf3 {[%emt 0:01:01]} Be7 {[%emt 0:00:30]} 7. Rc1 {[%emt 0:00:09]} h6 {[%emt 0:00:36]} 8. Bh4 {[%emt 0:00:11]} O-O {[%emt 0:08:23]} 9. Bd3 {[%emt 0:00:20]} dxc4 {[%emt 0:01:15]} 10. Bxc4 {[%emt 0:00:04]} b5 {[%emt 0:00:16]} 11. Bd3 {[%emt 0:00:16]} Bb7 {[%emt 0:00:46]} 12. O-O {[%emt 0:00:14]} b4 {[%emt 0:02:45]} 13. Bxf6 {[%emt 0:00:53]} Nxf6 {[%emt 0:00:47]} 14. Ne4 {[%emt 0:00:07]} Nxe4 {[%emt 0:03:11]} 15. Bxe4 {[%emt 0:01:08]} Rc8 {[%emt 0:00:04]} 16. Ne5 {[%emt 0:00:31]} Bd6 {[%emt 0:06:39]} 17. f4 {[%emt 0:08:42]} Bxe5 {[%emt 0:20:38]} 18. fxe5 {[%emt 0:00:10]} Ba6 {[%emt 0:00:05]} 19. Re1 {[%emt 0:02:18]} c5 {[%emt 0:05:15]} 20. dxc5 {[%emt 0:07:45]} Qa5 {[%emt 0:02:08]} 21. Qd6 {[%emt 0:09:24]} Rfd8 {[%emt 0:00:49]} 22. Qe7 {[%emt 0:00:09]} Bb5 {[%emt 0:02:34]} 23. c6 {[%emt 0:04:51]} b3 {[%emt 0:04:12]} 24. axb3 {[%emt 0:03:46]} Bxc6 {[%emt 0:00:42]} 25. b4 {[%emt 0:00:50]} Qxe5 {[%emt 0:21:56]} 26. Bxc6 {[%emt 0:00:19]} Rd2 {[%emt 0:00:11]} 27. Qh4 {[%emt 0:02:35]} Qxb2 {[%emt 0:02:21]} 28. Qe4 {[%emt 0:00:42]} a6 {[%emt 0:03:26]} 29. Rb1 {[%emt 0:05:24]} Qc3 {[%emt 0:01:03]} 30. Rec1 {[%emt 0:00:42]} Qa3 {[%emt 0:01:00]} 31. Rf1 {[%emt 0:07:58]} Rd6 {[%emt 0:01:37]} 32. Bb7 {[%emt 0:01:19]} Rcd8 {[%emt 0:02:27]} 33. Ra1 {[%emt 0:04:06]} Qb2 {[%emt 0:00:10]} 34. Bxa6 {[%emt 0:02:19]} f5 {[%emt 0:01:07]} 35. Qc4 {[%emt 0:01:16]} Kh7 {[%emt 0:00:21]} 36. b5 {[%emt 0:01:42]} Rd2 {[%emt 0:00:20]} 37. Bb7 {[%emt 0:01:21]} e5 {[%emt 0:06:09]} 38. Qf7 {[%emt 0:01:28]} R8d6 {[%emt 0:00:16]} 39. Qxf5+ {[%emt 0:02:13]} Rg6 {[%emt 0:00:55]} 40. Qh3 {[%emt 0:00:10]} Rg5 {[%emt 0:00:41]} 41. Be4+ {[%emt 0:00:23]} g6 {[%emt 0:00:08]} 42. Ra7+ {[%emt 0:00:14]} 1-0